fUST/lending_fUST_20241123
["ID","MTS","AMOUNT","RATE_DAILY","PERIOD"]
[343121060,1732368639374,-500.0,0.00019351,2]
[343121061,1732368639384,-500.0,0.00019351,2]
[343121062,1732368639393,-500.0,0.00019351,2]
[343121063,1732368639403,-500.0,0.00019351,2]
[343121064,1732368639413,-500.0,0.00019351,2]
[343121065,1732368639422,-287.2460442,0.00019351,2]
[343121069,1732368639491,-212.7539558,0.00019351,2]
[343121071,1732368639501,-500.0,0.00019351,2]
[343121073,1732368639511,-500.0,0.00019351,2]
[343121075,1732368639522,-500.0,0.00019351,2]
[343121077,1732368639533,-500.0,0.00019351,2]
[343121079,1732368639543,-500.0,0.00019351,2]
[343121080,1732368639553,-500.0,0.00019351,2]
[343121081,1732368639563,-500.0,0.00019351,2]
[343121082,1732368639573,-500.0,0.00019351,2]
[343121083,1732368639583,-500.0,0.00019351,2]
[343121085,1732368639594,-500.0,0.00019351,2]
[343121087,1732368639604,-500.0,0.00019351,2]
[343121089,1732368639614,-500.0,0.00019351,2]
[343121091,1732368639623,-187.86443172,0.00019351,2]
[343121093,1732368639633,-500.0,0.00019351,2]
[343121095,1732368639642,-500.0,0.00019351,2]
[343121097,1732368639652,-500.0,0.00019351,2]
[343121099,1732368639662,-500.0,0.00019351,2]
[343121101,1732368639672,-500.0,0.00019351,2]
[343121103,1732368639684,-500.0,0.00019351,2]
[343121105,1732368639693,-153.37605682,0.00019351,2]
[343121106,1732368639703,-162.26994318,0.00019351,2]
[343121108,1732368639712,-250000.0,0.00019352,2]
[343121110,1732368639722,-618.833575,0.00019539,2]
[343121111,1732368639732,-500.0,0.00019624,2]
[343121112,1732368639741,-500.0,0.00019624,2]
[343121113,1732368639751,-500.0,0.00019624,2]
[343121115,1732368639761,-298.59,0.00019624,2]
[343121116,1732368639772,-500.0,0.00019624,2]
[343121117,1732368639782,-500.0,0.00019898,2]
[343121118,1732368639791,-500.0,0.00019898,2]
[343121119,1732368639800,-352.22708674,0.00019898,2]
[343121120,1732368639810,-500.0,0.00019898,2]
[343121121,1732368639820,-330.0,0.000199,2]
[343121122,1732368639830,-1107.0,0.00020066,2]
[343121123,1732368639839,-500.0,0.00020172,2]
[343121124,1732368639849,-500.0,0.00020172,2]
[343121125,1732368639858,-500.0,0.00020172,2]
[343121126,1732368639869,-500.0,0.00020446,2]
[343121127,1732368639879,-250.88,0.00020446,2]
[343121128,1732368639888,-500.0,0.00020446,2]
[343121129,1732368639898,-820.26237118,0.000205,2]
[343121130,1732368639907,-500.0,0.0002072,2]
[343121131,1732368639917,-500.0,0.0002072,2]
[343121132,1732368639927,-163.286501,0.00020807,2]
[343121133,1732368639938,-500.0,0.00020994,2]
[343121134,1732368639947,-500.0,0.00020994,2]
[343121135,1732368639957,-500.0,0.00021268,2]
[343121136,1732368639967,-500.0,0.00021268,2]
[343121137,1732368639976,-420.0,0.00021284,2]
[343121138,1732368639986,-1611.49,0.000215,2]
[343121139,1732368639995,-500.0,0.00021542,2]
[343121140,1732368640004,-500.0,0.00021542,2]
[343121141,1732368640013,-820.26237118,0.00021748,2]
[343121142,1732368640023,-500.0,0.00021816,2]
[343121143,1732368640031,-500.0,0.00021816,2]
[343121144,1732368640040,-333.60692647,0.00021852,2]
[343121145,1732368640207,-500.0,0.0002209,2]
[343121146,1732368640216,-500.0,0.0002209,2]
[343121147,1732368640226,-514.25,0.00022364,2]
[343121148,1732368640235,-500.0,0.00022364,2]
[343121149,1732368640244,-500.0,0.00022638,2]
[343121150,1732368640254,-518.08955513,0.00022912,2]
[343121151,1732368640263,-820.26237118,0.00022997,2]
[343121152,1732368640273,-235.528,0.00023026,2]
[343121153,1732368640282,-287.0,0.00023412,2]
[343121154,1732368640291,-200.00000001,0.00024,2]
[343121155,1732368640301,-820.26237118,0.00024246,2]
[343121156,1732368640311,-195.5397888,0.00024658,15]
[343121157,1732368640321,-430.86551277,0.00024658,2]
[343121158,1732368640331,-300.0,0.00025,2]
[343121159,1732368640341,-300.0,0.00025,2]
[343121160,1732368640350,-273.599999,0.00025,2]
[343121161,1732368640359,-160.0,0.00025,2]
[343121162,1732368640369,-820.26237118,0.00025495,2]
[343121163,1732368640379,-477.29988363,0.00025676,9]
[343121164,1732368640388,-300.0,0.000257,2]
[343121165,1732368640397,-643.2541223,0.00025999,2]
[343121166,1732368640407,-261.47018735,0.00025999,2]
[343121167,1732368640416,-239.57625016,0.00025999,2]
[343121168,1732368640425,-235.00868155,0.00025999,2]
[343121169,1732368640437,-998.25000088,0.00026,2]
[343121170,1732368640446,-36000.00000085,0.00026,30]
[343121171,1732368640456,-300.0,0.000267,2]
[343121172,1732368640466,-820.26237118,0.00026743,2]
[343121173,1732368640476,-310.19671156,0.00026943,2]
[343121174,1732368640485,-437.0,0.00027,2]
[343121175,1732368640495,-513.39,0.00027397,2]
[343121176,1732368640504,-163.286501,0.00027641,2]
[343121177,1732368640514,-437.0,0.00027671,2]
[343121178,1732368640525,-300.0,0.000277,2]
[343121179,1732368640534,-829.25294863,0.00027734,2]
[343121180,1732368640544,-500.0,0.00027887,2]
[343121181,1732368640554,-500.0,0.00027908,2]
[343121182,1732368640565,-79.47267057,0.00027918,2]
[343121183,1732368640578,-420.52732943,0.00027918,2]
[343121184,1732368640587,-820.26237118,0.00027992,2]
[343121185,1732368640598,-1723.00029939,0.00028,7]
[343121186,1732368640610,-8485.13768142,0.00028,7]
[343121187,1732368640629,-34957.86201919,0.00028,7]
[343121188,1732368640638,-201.0,0.00028,2]
[343121189,1732368640648,-500.0,0.00028011,2]
[343121190,1732368640657,-500.0,0.00028022,2]
[343121191,1732368640667,-13228.1371551,0.00028038,2]
[343121192,1732368640678,-1871.85289907,0.00028038,2]
[343121214,1732368642953,-818.0499988,0.00028038,2]
[343121222,1732368643032,-749.25718908,0.00028038,2]
[343121224,1732368643044,-3496.58527348,0.00028038,2]
[343121225,1732368643056,-5807.95480735,0.00028038,2]
[343121226,1732368643067,-1714.98027849,0.00028038,2]
[343121263,1732368645800,-316.31651585,0.00028038,2]
[343121265,1732368645814,-293.19945781,0.00028038,2]
[343121381,1732369832124,-161.100039,0.00013973,2]
[343121384,1732369832135,-423.10317672,0.00017362,2]
[343121484,1732369838347,-2576.89682328,0.00017362,2]
[343121486,1732369838356,-250.0,0.0001741,2]
[343121488,1732369838366,-2333.984656,0.00017843,2]
[343121490,1732369838376,-300.0,0.00018124,2]
[343121493,1732369838386,-300.0,0.00018124,2]
[343121496,1732369838395,-22830.95996708,0.00018125,2]
[343121498,1732369838407,-2049.04003292,0.00018125,2]
[343121500,1732369838416,-1260.0548708,0.00018151,2]
[343121502,1732369838426,-219.229494,0.00018226,2]
[343121504,1732369838435,-2333.984656,0.00018528,2]
[343121506,1732369838444,-179.42143444,0.00019051,2]
[343121508,1732369838454,-383.46551916,0.00019151,2]
[343121510,1732369838463,-500.0,0.00019151,2]
[343121512,1732369838473,-500.0,0.00019151,2]
[343121514,1732369838483,-500.0,0.00019151,2]
[343121516,1732369838492,-500.0,0.00019151,2]
[343121518,1732369838504,-58.6361555,0.00019151,2]
[343121521,1732369838521,-253.73760345,0.00019151,2]
[343121597,1732369839847,-167.52802505,0.00019151,2]
[343121598,1732369839858,-500.0,0.00019151,2]
[343121599,1732369839868,-500.0,0.00019151,2]
[343121600,1732369839878,-500.0,0.00019151,2]
[343121601,1732369839899,-210.7569057,0.00019151,2]
[343121602,1732369839909,-500.0,0.00019151,2]
[343121603,1732369839919,-178.80418694,0.00019151,2]
[343121604,1732369839929,-500.0,0.00019151,2]
[343121605,1732369839940,-500.0,0.00019151,2]
[343121606,1732369839950,-618.78644318,0.00019151,2]
[343121607,1732369839959,-45192.1244391,0.00019152,2]
[343121608,1732369839972,-427.63664462,0.00019152,2]
[343121630,1732369843056,-4554.78802892,0.00019152,2]
[343121631,1732369843070,-11255.12451832,0.00019152,2]
[343121632,1732369843083,-442.71028171,0.00019152,2]
[343121633,1732369843096,-24400.34256914,0.00019152,2]
[343121634,1732369843182,-10308.56912599,0.00019152,2]
[343121651,1732369846144,-3350.0,0.00019152,2]
[343121673,1732370724830,1000.0,0.00028702,120]
[343121674,1732370740036,1000.0,0.00028702,120]
[343121676,1732370772506,1000.0,0.00028702,120]
[343121677,1732370797378,200.73506089,0.00027,60]
[343121730,1732371032159,-158.502974,0.00013288,2]
[343121732,1732371032168,-158.502974,0.00013973,2]
[343121747,1732371032297,-5144.505395,0.00017963,2]
[343121749,1732371032310,-288.392551,0.0001797,2]
[343121751,1732371032320,-777.994885,0.00018132,2]
[343121753,1732371032329,-777.994885,0.00018817,2]
[343121755,1732371032339,-300.0,0.00019051,2]
[343121757,1732371032348,-300.0,0.00019051,2]
[343121759,1732371032358,-291.22502244,0.00019052,2]
[343121761,1732371032367,-26520.91231251,0.00019052,2]
[343121763,1732371032379,-1547.2648,0.00019052,2]
[343121765,1732371032390,-721.2484,0.00019052,2]
[343121805,1732371038436,-1665.45407025,0.00019052,2]
[343121806,1732371038450,-2333.0,0.00019052,2]
[343121848,1732371043201,-2665.82967576,0.00018862,2]
[343121849,1732371043210,-1897.38895729,0.00019052,2]
[343121851,1732371043305,-30720.0,0.00019052,2]
[343121860,1732371046270,-10189.73999999,0.00019052,2]
[343121862,1732371046285,-4855.09193824,0.00019052,2]
[343121863,1732371046295,-186.53379855,0.00019151,2]
[343121864,1732371046305,-290.97627146,0.00019151,2]
[343121865,1732371046315,-90598.91862566,0.00019152,2]
[343121898,1732371230358,7000.0,0.00026,60]
[343121927,1732372121954,669.67173598,0.00025,120]
[343122028,1732372232560,-300.0,0.00010899,2]
[343122030,1732372232570,-300.0,0.00010899,2]
[343122032,1732372232579,-10159.02788223,0.000109,2]
[343122046,1732372232716,-6346.32465229,0.000109,2]
[343122049,1732372232726,-420.0,0.00011978,2]
[343122051,1732372232735,-587.0,0.00013164,2]
[343122053,1732372232744,-158.502974,0.00013973,2]
[343122055,1732372232753,-823.0,0.00014467,2]
[343122057,1732372232763,-1152.0,0.00015899,2]
[343122059,1732372232772,-1613.0,0.00017473,2]
[343122061,1732372232781,-3290.75289365,0.00018793,2]
[343122063,1732372232791,-4313.97249642,0.00018807,2]
[343122065,1732372232800,-14706.85842925,0.00019052,2]
[343122067,1732372232810,-194.15001496,0.00019052,2]
[343122069,1732372232819,-297.21984762,0.00019078,2]
[343122071,1732372232828,-500.0,0.00019178,2]
[343122073,1732372232841,-263.39726572,0.00019178,2]
[343122075,1732372232850,-500.0,0.00019178,2]
[343122077,1732372232860,-286.62238128,0.00019178,2]
[343122079,1732372232869,-573.70663308,0.00019178,2]
[343122081,1732372232878,-500.0,0.00019178,2]
[343122083,1732372232888,-500.0,0.00019178,2]
[343122085,1732372232897,-500.0,0.00019178,2]
[343122087,1732372232906,-179.74735492,0.00019178,2]
[343122089,1732372232915,-500.0,0.00019178,2]
[343122091,1732372232924,-165.191483,0.00019178,2]
[343122093,1732372232934,-163.595033,0.00019178,2]
[343122095,1732372232943,-2258.0,0.00019203,2]
[343122097,1732372232953,-500.0,0.00019452,2]
[343122099,1732372232963,-228.64,0.00019452,2]
[343122101,1732372232972,-500.0,0.00019452,2]
[343122103,1732372232981,-500.0,0.00019726,2]
[343122105,1732372232992,-221.91875,0.00019726,2]
[343122107,1732372233001,-259.331628,0.00019931,2]
[343122109,1732372233010,-3103.45445281,0.0001999,2]
[343122112,1732372233034,-14812.31595161,0.0001999,2]
[343122114,1732372233045,-500.0,0.0002,2]
[343122116,1732372233054,-500.0,0.00020273,2]
[343122118,1732372233065,-297.2198476,0.00020348,2]
[343122120,1732372233075,-9452.5296975,0.00020377,2]
[343122122,1732372233088,-500.0,0.00020547,2]
[343122124,1732372233098,-259.331628,0.00020616,2]
[343122126,1732372233108,-500.0,0.00020821,2]
[343122128,1732372233118,-500.0,0.00021095,2]
[343122130,1732372233128,-158.502974,0.00021209,2]
[343122132,1732372233138,-259.331628,0.00021301,2]
[343122134,1732372233148,-500.0,0.00021369,2]
[343122136,1732372233158,-1450.34,0.000216,2]
[343122138,1732372233167,-297.2198476,0.00021617,2]
[343122140,1732372233178,-500.0,0.00021643,2]
[343122142,1732372233188,-500.0,0.00021917,2]
[343122144,1732372233198,-328.0,0.00022,2]
[343122146,1732372233209,-176.0,0.00022,2]
[343122149,1732372233219,-535.16331665,0.00022191,2]
[343122150,1732372233230,-328.0,0.00022192,2]
[343122152,1732372233239,-176.0,0.00022192,2]
[343122154,1732372233249,-297.2198476,0.00022887,2]
[343122156,1732372233260,-328.0,0.00023014,2]
[343122158,1732372233270,-176.0,0.00023014,2]
[343122160,1732372233279,-188.422,0.0002302,2]
[343122162,1732372233289,-297.2198476,0.00024156,2]
[343122164,1732372233299,-329.0,0.00024164,2]
[343122166,1732372233310,-179.0,0.00024164,2]
[343122168,1732372233320,-300.0,0.00025,2]
[343122170,1732372233331,-300.0,0.00025,2]
[343122172,1732372233344,-273.599999,0.00025,2]
[343122174,1732372233353,-297.2198476,0.00025426,2]
[343122176,1732372233364,-300.0,0.000257,2]
[343122178,1732372233373,-328.0,0.00025775,2]
[343122180,1732372233383,-176.0,0.00025775,2]
[343122182,1732372233393,-3616.66865458,0.00026,30]
[343122184,1732372233402,-297.2198476,0.00026695,2]
[343122186,1732372233412,-300.0,0.000267,2]
[343122188,1732372233422,-167.42,0.00026839,3]
[343122190,1732372233432,-334.84,0.00027244,3]
[343122193,1732372233442,-20575.05,0.00027244,10]
[343122194,1732372233452,-30862.58,0.00027254,10]
[343122197,1732372233462,-5039.35330872,0.00027264,10]
[343122199,1732372233472,-328.0,0.00027386,2]
[343122201,1732372233485,-176.0,0.00027386,2]
[343122203,1732372233495,-500.0,0.00027397,2]
[343122205,1732372233504,-328.0,0.00027616,2]
[343122207,1732372233515,-176.0,0.00027616,2]
[343122209,1732372233526,-300.0,0.000277,2]
[343122211,1732372233536,-186.53379855,0.00027944,2]
[343122213,1732372233546,-290.97627146,0.00027944,2]
[343122215,1732372233557,-20764.62834348,0.00027965,2]
[343122217,1732372233567,-330.0,0.00027973,2]
[343122219,1732372233577,-1000.0,0.00028,2]
[343122221,1732372233592,-1716.7176731,0.00028037,2]
[343122223,1732372233604,-183.02913114,0.00028064,2]
[343122225,1732372233614,-450.27788561,0.00028064,2]
[343122226,1732372233626,-164.50607708,0.00028064,2]
[343122228,1732372233637,-167.70337512,0.00028064,2]
[343122229,1732372233647,-194.15001496,0.00028065,2]
[343122231,1732372233657,-194.15001496,0.00028065,2]
[343122233,1732372233668,-151.0,0.00028065,7]
[343122234,1732372233678,-151.0,0.00028065,7]
[343122236,1732372233689,-151.0,0.00028065,7]
[343122237,1732372233699,-151.032813,0.00028065,7]
[343122239,1732372233708,-151.0,0.00028065,7]
[343122241,1732372233719,-151.0,0.00028065,7]
[343122242,1732372233730,-151.0,0.00028065,7]
[343122243,1732372233740,-151.0,0.00028065,7]
[343122244,1732372233750,-151.0,0.00028065,7]
[343122245,1732372233762,-151.0,0.00028065,7]
[343122246,1732372233772,-151.0,0.00028065,7]
[343122247,1732372233782,-151.0,0.00028065,7]
[343122248,1732372233792,-151.0,0.00028065,7]
[343122249,1732372233803,-151.0,0.00028065,7]
[343122250,1732372233814,-169.75,0.00028065,7]
[343122251,1732372233824,-281622.86199876,0.00028065,10]
[343122252,1732372233841,-1146.80617926,0.00028065,10]
[343122253,1732372233854,-455.8688184,0.00028065,10]
[343122254,1732372233866,-694748.10774054,0.00028065,10]
[343122255,1732372233878,-1727.39999464,0.00028065,10]
[343122266,1732372238450,-297.2198476,0.00027965,2]
[343122267,1732372238460,-5014.80568551,0.00028055,10]
[343122268,1732372238673,-10363.55781084,0.00028055,10]
[343122441,1732372243924,-177.88971045,0.00027944,2]
[343122443,1732372243934,-500.0,0.00027944,2]
[343122445,1732372243944,-57.95842342,0.00027944,2]
[343122527,1732372246483,-442.04157658,0.00027944,2]
[343122528,1732372246493,-500.0,0.00027944,2]
[343122529,1732372246503,-191.51782863,0.00027944,2]
[343122544,1732372591164,1078.6717,0.00024988,30]
[343122549,1732372838884,160.0,5e-05,2]
[343122550,1732372840388,160.0,5e-05,2]
[343122551,1732372842598,160.0,5e-05,2]
[343122552,1732372845620,160.0,5e-05,2]
[343122694,1732373204142,-163.328857,0.00013973,2]
[343122695,1732373204164,-500.0,0.00019178,2]
[343122696,1732373204185,-500.0,0.00019178,2]
[343122697,1732373204206,-500.0,0.00019178,2]
[343122698,1732373204227,-306.33127589,0.00019178,2]
[343122699,1732373204248,-500.0,0.00019178,2]
[343122700,1732373204270,-500.0,0.00019178,2]
[343122701,1732373204291,-500.0,0.00019178,2]
[343122702,1732373204312,-500.0,0.00019178,2]
[343122703,1732373204333,-500.0,0.00019178,2]
[343122704,1732373204356,-500.0,0.00019178,2]
[343122705,1732373204377,-500.0,0.00019178,2]
[343122706,1732373204397,-153.96621035,0.00019178,2]
[343122707,1732373204417,-500.0,0.00019452,2]
[343122708,1732373204437,-500.0,0.00019452,2]
[343122709,1732373204457,-500.0,0.00019452,2]
[343122710,1732373204478,-500.0,0.00019452,2]
[343122711,1732373204500,-500.0,0.00019452,2]
[343122712,1732373204521,-500.0,0.00019452,2]
[343122713,1732373204543,-575.91707687,0.00019452,2]
[343122714,1732373204564,-500.0,0.00019452,2]
[343122715,1732373204586,-500.0,0.00019452,2]
[343122716,1732373204724,-220.3098987,0.00019726,2]
[343122717,1732373247086,-279.6901013,0.00019726,2]
[343122718,1732373247109,-500.0,0.0002,2]
[343122719,1732373247134,-1305.3,0.000216,2]
[343122720,1732373247157,-163.328857,0.00021661,2]
[343122721,1732373247179,-150.0,0.00022132,2]
[343122722,1732373247200,-1058.048,0.00022132,2]
[343122723,1732373247223,-150.738,0.00023015,2]
[343122724,1732373247244,-179.94396094,0.00024938,2]
[343122725,1732373247266,-2600.3283,0.00024988,30]
[343122726,1732373247288,-303.0454553,0.00025,2]
[343122727,1732373247310,-303.0454553,0.0002525,2]
[343122728,1732373247332,-326.90896327,0.000255,2]
[343122729,1732373247354,-384.0,0.000257,2]
[343122730,1732373247376,-150.0,0.000259,2]
[343122731,1732373247398,-157.660351,0.00025983,2]
[343122732,1732373247426,-300.0,0.000267,2]
[343122733,1732373247447,-176.0,0.00027,2]
[343122734,1732373247468,-10663.04674559,0.00027154,2]
[343122735,1732373247489,-157.660351,0.00027353,2]
[343122736,1732373247509,-300.0,0.000277,2]
[343122737,1732373247532,-197.71638148,0.00027745,2]
[343122738,1732373247552,-160.3630242,0.00027771,2]
[343122739,1732373247574,-197.71638148,0.00027777,2]
[343122740,1732373247595,-197.71638148,0.00027808,2]
[343122741,1732373247618,-753.43,0.00027835,3]
[343122742,1732373247638,-160.36302418,0.00027836,2]
[343122743,1732373247660,-197.71638148,0.0002784,2]
[343122744,1732373247681,-241.87002175,0.00027845,2]
[343122745,1732373247702,-251.13,0.00027845,3]
[343122746,1732373247723,-13887.5,0.00027845,10]
[343122747,1732373247749,-500.0,0.00027854,2]
[343122748,1732373247772,-500.0,0.00027854,2]
[343122749,1732373247793,-500.0,0.00027854,2]
[343122750,1732373247814,-500.0,0.00027854,2]
[343122751,1732373247835,-152.35549628,0.00027854,2]
[343122752,1732373247857,-500.0,0.00027854,2]
[343122753,1732373247882,-500.0,0.00027854,2]
[343122754,1732373247903,-500.0,0.00027854,2]
[343122755,1732373247929,-500.0,0.00027854,2]
[343122756,1732373247951,-637.95665904,0.00027854,2]
[343122757,1732373247971,-500.0,0.00027854,2]
[343122758,1732373247993,-500.0,0.00027854,2]
[343122759,1732373248016,-453.75692777,0.00027854,2]
[343122760,1732373248038,-500.0,0.00027854,2]
[343122761,1732373248059,-380.40804608,0.00027854,2]
[343122762,1732373248085,-33480.03641908,0.00027855,2]
[343122800,1732373436830,-1100.0,0.00021693,2]
[343122801,1732373436840,-288.09659864,0.00022,2]
[343122802,1732373436851,-798.32429292,0.00022,2]
[343122803,1732373437263,-88.34910844,0.00022,2]
[343122804,1732373437273,-150.128,0.00022132,2]
[343122805,1732373437283,-150.035,0.00022132,2]
[343122806,1732373437292,-1100.0,0.00022789,2]
[343122807,1732373437301,-1100.0,0.00023885,2]
[343122808,1732373437311,-1100.0,0.00024981,7]
[343122809,1732373437321,-165.191483,0.00025074,2]
[343122810,1732373437331,-1100.0,0.00026625,7]
[343122811,1732373437341,-1125.0,0.00027153,2]
[343122812,1732373437350,-1125.0,0.00027427,2]
[343122813,1732373437359,-1125.0,0.00027701,2]
[343122814,1732373437370,-166.71637356,0.00027855,2]
[343122815,1732373437382,-76763.51195183,0.00027855,2]
[343122816,1732373437391,-6470.0,0.000279,7]
[343122817,1732373437401,-197.71638148,0.00027935,2]
[343122818,1732373437410,-160.36302418,0.00027947,2]
[343122819,1732373437420,-561.66899292,0.00027957,2]
[343122820,1732373437429,-500.0,0.00027964,2]
[343122821,1732373437439,-330.0,0.00027965,2]
[343122822,1732373437448,-197.71638148,0.00027967,2]
[343122823,1732373437458,-160.36302418,0.00027967,2]
[343122824,1732373437468,-1125.0,0.00027975,2]
[343122825,1732373437477,-173.03,0.00028,31]
[343122826,1732373437487,-173.03,0.00028,31]
[343122827,1732373437498,-173.03,0.00028,31]
[343122828,1732373437507,-173.03,0.00028,31]
[343122829,1732373437516,-150.109939,0.00028,2]
[343122830,1732373437526,-196.83330519,0.00028,10]
[343122831,1732373437535,-502.26,0.00028047,3]
[343122832,1732373437545,-24018.75,0.00028056,10]
[343122833,1732373437555,-150.01,0.00028064,2]
[343122834,1732373437565,-315.19451993,0.00028066,2]
[343122835,1732373437575,-208.93422734,0.00028066,2]
[343122836,1732373437584,-328.1952142,0.00028066,2]
[343122837,1732373437594,-181.99518434,0.00028066,2]
[343122838,1732373437604,-301910.42385393,0.00028067,10]
[343122839,1732373437616,-331.67826058,0.00028067,10]
[343122840,1732373437639,-321789.28680748,0.00028067,10]
[343122841,1732373437648,-273181.22079075,0.00028067,10]
[343122887,1732373438726,-163.328857,0.00013973,2]
[343122889,1732373438736,-163.328857,0.00022759,2]
[343122891,1732373438746,-34419.5427932,0.00028067,10]
[343122907,1732373438932,-11724.22414346,0.00028067,10]
[343122910,1732373438945,-2236.83985657,0.00028067,10]
[343123272,1732373443983,-1157.76147987,0.000275,2]
[343123275,1732373444001,-102.96117013,0.000275,2]
[343123277,1732373444013,-500.0,0.00027854,2]
[343123279,1732373444023,-500.0,0.00027854,2]
[343123281,1732373444032,-1000.0,0.00028,2]
[343123283,1732373444043,-20015.62,0.00028057,10]
[343123285,1732373444052,-3125506.58251771,0.00028067,10]
[343123563,1732373446773,-2159.299728,0.00019077,2]
[343123565,1732373446783,-2159.299728,0.00019316,2]
[343123567,1732373446794,-2159.299728,0.00019554,2]
[343123569,1732373446804,-500.0,0.00027153,2]
[343123571,1732373446814,-647.22299451,0.00027844,2]
[343123573,1732373446824,-153.0,0.00028055,30]
[343123575,1732373446834,-304.267258,0.00028055,30]
[343123577,1732373446844,-153.0,0.00028055,30]
[343123579,1732373446854,-424.8326851,0.00028055,30]
[343123581,1732373446864,-153.0,0.00028055,30]
[343123583,1732373446874,-3433.43534622,0.00028065,2]
[343123585,1732373446883,-119217.62536501,0.00028067,10]
[343126445,1732374637516,-160.697371,0.00013973,2]
[343126446,1732374637526,-186.6820724,0.00017831,2]
[343126447,1732374637536,-251.741632,0.00018794,2]
[343126448,1732374637545,-2037.574376,0.00019077,2]
[343126449,1732374637556,-171.721438,0.00019077,2]
[343126450,1732374637565,-164.680817,0.00019178,2]
[343126451,1732374637575,-2037.574376,0.00019316,2]
[343126452,1732374637585,-171.721438,0.00019395,2]
[343126453,1732374637595,-251.741632,0.00019479,2]
[343126454,1732374637605,-2037.574376,0.00019554,2]
[343126455,1732374637614,-171.721438,0.00019713,2]
[343126456,1732374637623,-300.0,0.00019779,2]
[343126457,1732374637632,-300.0,0.0001978,2]
[343126458,1732374637642,-2159.299728,0.00019793,2]
[343126459,1732374637651,-2037.574376,0.00019793,2]
[343126460,1732374637661,-160.80507585,0.00019897,2]
[343126461,1732374637671,-233.01590285,0.00019898,2]
[343126462,1732374637681,-500.0,0.00019973,2]
[343126463,1732374637691,-500.0,0.00019973,2]
[343126464,1732374637700,-500.0,0.00019973,2]
[343126465,1732374637710,-328.84,0.00019988,3]
[343126466,1732374637719,-500.0,0.00019996,2]
[343126467,1732374637729,-6575.11,0.00019996,2]
[343126468,1732374637739,-1627.77,0.00019996,2]
[343126469,1732374637750,-4864.52,0.00019996,2]
[343126470,1732374637761,-790.18,0.00019996,2]
[343126471,1732374637771,-500.0,0.00019996,2]
[343126472,1732374637781,-1062.44,0.00019996,2]
[343126473,1732374637790,-500.0,0.00019996,2]
[343126474,1732374637800,-500.0,0.00019996,2]
[343126475,1732374637810,-500.0,0.00019996,2]
[343126476,1732374637820,-28097.82,0.00019996,2]
[343126477,1732374637830,-165.03654423,0.00019997,2]
[343126478,1732374637840,-500.0,0.00019997,2]
[343126479,1732374637849,-565.5,0.00019997,2]
[343126480,1732374637859,-500.0,0.00019997,2]
[343126481,1732374637869,-924.31,0.00019997,2]
[343126482,1732374637879,-500.0,0.00019997,2]
[343126483,1732374637889,-500.0,0.00019997,2]
[343126484,1732374637899,-1065.21,0.00019997,2]
[343126485,1732374637909,-500.0,0.00019997,2]
[343126486,1732374637919,-500.0,0.00019997,2]
[343126487,1732374637929,-590.32,0.00019997,2]
[343126488,1732374637938,-500.0,0.00019997,2]
[343126489,1732374637948,-500.0,0.00019997,2]
[343126490,1732374637957,-500.0,0.00019997,2]
[343126491,1732374637967,-772.55,0.00019997,2]
[343126492,1732374637977,-1429.5,0.00019997,2]
[343126493,1732374637987,-503.58,0.00019997,2]
[343126494,1732374637998,-794.5,0.00019997,2]
[343126495,1732374638008,-545.04006233,0.00019997,2]